bitfinex/quotes_ETHUSD_20251118
["timestamp","ask_amount","ask_price","bid_price","bid_amount"]
[1763490231710,0.002,3153.6,3153.5,0.856304]
[1763490231908,0.002,3153.6,3153.5,0.630904]
[1763490232441,0.002,3153.6,3153.2,0.405504]
[1763490233442,0.002,3153.6,3153.5,0.2254]
[1763490237047,0.002,3153.6,3153.5,0.4508]
[1763490237247,0.002,3153.6,3153.5,0.856304]
[1763490237655,0.002,3153.6,3153.5,0.630904]
[1763490238653,0.002,3153.6,3153.5,0.856304]
[1763490240031,0.002,3153.6,3153.5,0.630904]
[1763490240651,0.002,3153.6,3153.5,0.405504]
[1763490242555,0.002,3153.6,3153.2,0.405504]
[1763490242556,0.4935,3153.6,3153.2,0.405504]
[1763490242725,0.4915,3153.2,3153.1,0.001]
[1763490243160,0.9738,3153.2,3153.1,0.001]
[1763490243460,1.2711804,3153.2,3153.1,0.001]
[1763490244072,0.4915,3153.2,3153.1,0.001]
[1763490244237,0.9738,3153.2,3153.1,0.001]
[1763490247178,1.27100782,3153.2,3153.1,0.001]
[1763490247860,1.27100782,3153.2,3152.0,0.001]
[1763490247861,0.4838,3152.2,3152.0,0.001]
[1763490248036,0.78100782,3152.1,3152.0,0.001]
[1763490248539,0.9594,3152.1,3152.0,0.001]
[1763490248739,1.45077705,3152.1,3152.0,0.001]
[1763490249166,1.85628105,3152.1,3152.0,0.001]
[1763490249776,1.55907323,3152.1,3152.0,0.001]
[1763490250084,1.85535715,3152.1,3152.0,0.001]
[1763490250286,1.55907323,3152.1,3152.0,0.001]
[1763490251588,0.4756,3152.8,3152.0,0.001]
[1763490251793,1.45328388,3153.0,3152.0,0.001]
[1763490251959,0.4838,3152.1,3152.0,0.001]
[1763490252367,0.9594,3152.1,3152.0,0.001]
[1763490253688,0.4756,3152.4,3152.0,0.001]
[1763490254019,0.881104,3152.5,3152.0,0.001]
[1763490254173,2.36418763,3153.9,3152.0,0.001]
[1763490254507,0.705,3152.8,3152.0,0.001]
[1763490255009,0.4838,3152.1,3152.0,0.001]
[1763490255373,0.9594,3152.1,3152.0,0.001]
[1763490258693,0.4756,3152.5,3152.0,0.001]
[1763490258919,0.405504,3152.4,3152.0,0.001]
[1763490259263,0.881104,3152.4,3152.0,0.001]
[1763490259761,0.4756,3152.8,3152.1,0.1177]
[1763490259966,0.4756,3152.8,3152.0,0.001]
[1763490259967,0.405504,3152.7,3152.0,0.001]
[1763490260494,0.4998,3152.6,3152.0,0.001]
[1763490261088,0.4674,3152.1,3152.0,0.001]
[1763490261490,0.9672,3152.1,3152.0,0.001]
[1763490262115,0.59463718,3152.1,3152.0,0.001]
[1763490262323,0.12723718,3152.1,3152.0,0.2304]
[1763490262610,0.4998,3152.8,3152.0,0.2304]
[1763490262793,0.12721574,3152.6,3152.0,0.001]
[1763490262962,0.62701574,3152.6,3152.0,0.001]
[1763490263366,0.4998,3153.1,3152.1,0.1177]
[1763490263581,0.12720522,3152.9,3152.1,0.1177]
[1763490263901,0.15905047,3152.9,3152.1,0.1177]
[1763490264103,0.4998,3152.8,3152.1,0.1177]
[1763490264520,0.4674,3152.2,3152.0,0.001]
[1763490264822,0.90699264,3152.7,3152.0,0.001]
[1763490265016,0.97547926,3152.6,3152.0,0.001]
[1763490265821,0.4998,3152.6,3152.0,0.001]
[1763490266213,0.12720522,3152.9,3152.0,0.001]
[1763490266724,0.12720522,3152.9,3152.1,0.405504]
[1763490267108,0.12720522,3152.9,3152.3,0.405504]
[1763490267313,0.002,3153.2,3152.8,0.2294]
[1763490272035,0.002,3153.2,3152.3,0.405504]
[1763490272036,0.002,3153.2,3153.1,0.1117]
[1763490272732,0.002,3153.2,3152.6,0.405504]
[1763490273421,0.002,3153.2,3152.2,0.62951903]
[1763490273422,0.002,3153.2,3152.2,0.85891903]
[1763490273729,0.002,3153.2,3152.3,0.634904]
[1763490274101,0.002,3153.2,3152.5,0.405504]
[1763490274520,0.002,3153.2,3152.6,0.2294]
[1763490275900,0.002,3153.2,3153.1,0.746604]
[1763490276437,0.002,3153.2,3153.1,0.976004]
[1763490277537,0.002,3153.2,3153.1,0.746604]
[1763490277745,0.002,3153.2,3153.1,0.405504]
[1763490278243,0.002,3153.2,3153.1,0.746604]
[1763490280552,0.4965,3153.2,3152.3,0.405504]
[1763490280850,0.4965,3153.2,3152.3,0.634904]
[1763490281148,0.4965,3153.2,3152.5,0.405504]
[1763490281648,0.002,3153.2,3152.5,0.2294]
[1763490281814,0.002,3153.2,3152.7,0.405504]
[1763490282217,0.002,3153.2,3152.7,0.2294]
[1763490282535,0.002,3153.2,3153.1,0.746604]
[1763490282919,0.002,3153.2,3153.1,0.976004]
[1763490285236,0.002,3153.2,3153.1,0.746604]
[1763490285438,0.002,3153.2,3153.1,0.405504]
[1763490285649,0.002,3153.2,3153.1,0.746604]
[1763490285827,0.002,3153.2,3153.1,0.976004]
[1763490291973,0.002,3153.2,3153.1,0.746604]
[1763490292182,0.002,3153.2,3153.1,0.91196366]
[1763490293084,0.002,3153.2,3152.8,3.86]
[1763490293085,0.4965,3153.2,3152.8,3.86]
[1763490293382,0.002,3153.2,3152.8,3.86]
[1763490293789,0.002,3153.2,3153.1,0.634904]
[1763490294496,0.002,3153.2,3153.1,0.405504]
[1763490300414,0.002,3153.2,3153.1,0.634904]
[1763490300726,0.9751,3153.2,3152.2,0.63596676]
[1763490301008,0.4945,3152.3,3152.0,0.001]
[1763490301598,0.002,3153.2,3152.2,0.2294]
[1763490301779,0.002,3153.2,3152.5,0.2294]
[1763490302110,0.4786,3153.1,3152.6,0.405504]
[1763490302276,0.4786,3153.1,3152.2,0.63905142]
[1763490302477,0.4786,3153.1,3152.0,0.2304]
[1763490302677,0.4786,3153.1,3152.0,0.001]
[1763490302678,0.4945,3152.1,3152.0,0.001]
[1763490302978,0.2971264,3153.0,3152.0,0.001]
[1763490303179,0.7757264,3153.0,3152.0,0.001]
[1763490303505,0.4786,3153.0,3152.0,0.001]
[1763490303707,0.4786,3152.9,3152.0,0.001]
[1763490304109,0.002,3153.2,3152.0,0.001]
[1763490304309,0.002,3153.2,3152.1,0.634904]
[1763490304510,0.4786,3153.1,3152.1,0.634904]
[1763490304683,0.4786,3153.1,3152.1,0.405504]
[1763490305395,0.4786,3153.1,3152.1,0.634904]
[1763490305705,0.4786,3153.1,3152.2,0.26112387]
[1763490306077,0.4786,3153.1,3152.2,0.2294]
[1763490306283,0.4786,3153.1,3152.1,0.405504]
[1763490306485,0.4786,3153.1,3152.0,0.406504]
[1763490306797,0.4786,3153.1,3152.1,0.4266504]
[1763490307615,0.4786,3153.1,3152.0,0.406504]
[1763490307812,0.4786,3153.1,3152.0,0.001]
[1763490309039,0.4716,3152.1,3152.0,0.001]
[1763490309416,0.9523,3152.1,3152.0,0.001]
[1763490309621,0.9523,3152.1,3151.8,0.001]
[1763490309938,0.6165,3151.9,3151.8,0.001]
[1763490310439,1.0972,3151.9,3151.8,0.001]
[1763490314358,0.1924,3152.1,3151.8,0.001]
[1763490314518,0.1924,3152.4,3151.8,0.001]
[1763490314724,0.4807,3152.9,3151.8,0.001]
[1763490314931,0.4807,3152.8,3151.8,0.001]
[1763490315335,0.1924,3153.0,3151.8,0.001]
[1763490315653,0.002,3153.1,3152.0,0.405504]
[1763490316037,0.002,3153.1,3151.9,0.2304]
[1763490316038,0.002,3153.1,3152.1,0.2304]
[1763490316510,0.4827,3153.1,3151.8,0.406504]
[1763490316912,0.4827,3153.1,3151.8,0.636904]
[1763490317340,0.03184525,3153.0,3151.8,0.001]
[1763490317733,0.6731,3152.9,3151.8,0.001]
[1763490318135,0.4807,3152.8,3151.8,0.001]
[1763490319121,0.1924,3152.9,3151.8,0.001]
[1763490319122,0.002,3153.1,3152.0,0.405504]
[1763490319340,0.1924,3152.9,3152.0,0.405504]
[1763490319542,0.6731,3152.9,3152.0,0.405504]
[1763490319749,0.1924,3152.9,3152.0,0.405504]
[1763490320643,0.002,3153.1,3152.2,0.405504]
[1763490320829,0.002,3153.1,3152.2,0.635904]
[1763490321350,0.002,3153.1,3152.4,0.405504]
[1763490324159,0.6414,3152.5,3151.8,0.001]
[1763490324359,0.4518,3152.4,3151.9,0.3862]
[1763490324574,0.6613,3152.8,3151.8,0.2314]
[1763490324942,0.4717,3152.7,3151.9,0.405504]
[1763490326058,0.002,3153.1,3152.1,0.405504]
[1763490326568,0.4737,3153.1,3152.1,0.405504]
[1763490326786,0.4737,3153.1,3151.8,0.406504]
[1763490326940,0.4737,3153.1,3152.0,0.405504]
[1763490327688,0.4737,3153.1,3151.8,0.001]
[1763490327689,0.6414,3152.1,3151.8,0.001]
[1763490327887,0.4518,3151.9,3151.8,0.001]
[1763490328090,0.9235,3151.9,3151.8,0.001]
[1763490328236,0.4518,3151.9,3151.8,0.001]
[1763490328681,0.9235,3151.9,3151.8,0.001]
[1763490332659,0.4518,3151.5,3151.3,0.001]
[1763490332865,0.4717,3151.8,3151.3,0.001]
[1763490332866,1.22031463,3151.4,3151.3,0.001]
[1763490334283,1.22013781,3151.4,3151.3,0.001]
[1763490338827,1.38270199,3151.4,3151.3,0.001]
[1763490340132,0.90699264,3151.3,3149.7,0.1117]
[1763490340326,0.90699264,3151.3,3149.4,0.1157]
[1763490340327,0.29663781,3151.2,3149.4,0.1157]
[1763490340628,0.77153781,3151.2,3149.4,0.1157]
[1763490340833,0.77153781,3151.2,3149.4,0.3501]
[1763490341015,0.77153781,3151.1,3149.5,0.405504]
[1763490341219,0.77153781,3151.1,3149.5,0.639904]
[1763490341421,0.4749,3151.0,3149.5,0.639904]
[1763490341796,0.1829,3150.9,3149.5,0.639904]
[1763490342193,0.4749,3150.8,3149.5,0.405504]
[1763490342920,0.50674525,3150.8,3149.5,0.405504]
[1763490344018,0.4749,3150.8,3149.7,0.405504]
[1763490344609,0.50674525,3150.8,3149.5,0.405504]
[1763490344812,0.50674525,3150.8,3149.5,0.406504]
[1763490345011,0.50674525,3150.8,3149.7,0.405504]
[1763490345313,0.50674525,3150.8,3149.5,0.406504]
[1763490345514,0.29511909,3150.7,3149.5,0.001]
[1763490345719,0.50674525,3150.6,3149.5,0.001]
[1763490345922,0.6364,3149.6,3149.5,0.001]
[1763490346344,1.1113,3149.6,3149.5,0.001]
[1763490346527,0.6578,3150.0,3149.5,0.001]
[1763490346715,0.1829,3150.0,3149.5,0.001]
[1763490346914,0.6578,3150.0,3149.5,0.001]
[1763490347126,0.4749,3149.9,3149.5,0.001]
[1763490347518,0.4535,3149.6,3149.5,0.001]
[1763490348317,0.4749,3149.9,3149.5,0.001]
[1763490348519,0.1829,3150.0,3149.5,0.001]
[1763490349554,0.6578,3150.0,3149.5,0.001]
[1763490349974,0.4749,3149.9,3149.5,0.001]
[1763490350556,0.4535,3149.6,3149.5,0.001]
[1763490351048,0.9284,3149.6,3149.5,0.001]
[1763490352913,0.90699264,3149.9,3149.5,0.001]
[1763490353145,0.4535,3149.6,3149.5,0.001]
[1763490353536,0.1829,3150.0,3149.5,0.001]
[1763490353769,0.4535,3149.6,3149.5,0.001]
[1763490354174,0.4749,3149.9,3149.5,0.001]
[1763490354773,0.1829,3150.0,3149.5,0.001]
[1763490354958,0.6578,3150.0,3149.5,0.001]
[1763490355362,0.4535,3149.6,3149.5,0.001]
[1763490356479,0.68264483,3150.3,3149.5,0.2354]
[1763490356771,1.15754483,3150.4,3149.5,0.2354]
[1763490356975,0.4749,3150.7,3149.5,0.2354]
[1763490357176,0.26433456,3150.6,3149.5,0.2354]
[1763490357365,0.50674525,3150.5,3149.5,0.2354]
[1763490357565,3.85674525,3150.5,3149.5,0.001]
[1763490357765,1.58963747,3150.4,3149.5,0.001]
[1763490357941,0.03184525,3150.3,3149.5,0.001]
[1763490358144,0.20963827,3150.2,3149.5,0.001]
[1763490358578,0.68453827,3150.2,3149.5,0.001]
[1763490358979,0.50674525,3150.1,3149.5,0.001]
[1763490360741,0.6364,3149.6,3149.5,0.001]
[1763490360945,1.1113,3149.6,3149.5,0.001]
[1763490361379,1.55743,3149.6,3149.5,0.001]
[1763490363263,0.89963,3149.6,3149.5,0.001]
[1763490363445,0.9284,3149.6,3149.5,0.001]
[1763490364052,0.1829,3149.9,3149.5,0.2354]
[1763490364380,0.77175564,3150.1,3149.5,0.2354]
[1763490364585,0.29685564,3150.1,3149.5,0.2354]
[1763490364782,0.16654557,3150.0,3149.5,0.2354]
[1763490365007,0.46340121,3150.0,3149.5,0.2354]
[1763490365288,0.4535,3149.6,3149.5,0.001]
[1763490365792,0.9284,3149.6,3149.5,0.001]
[1763490366087,1.22525564,3149.6,3149.5,0.001]
[1763490366294,1.44166499,3149.6,3149.5,0.001]
[1763490366858,3.06501482,3149.6,3149.5,0.001]
[1763490367055,6.41601482,3149.6,3149.5,0.001]
[1763490367255,7.27196377,3149.6,3149.5,0.001]
[1763490367456,8.00394015,3149.6,3149.1,0.001]
[1763490367766,5.59322776,3149.2,3149.1,0.001]
[1763490367962,6.60678409,3149.2,3149.1,0.001]
[1763490368162,7.08798409,3149.2,3149.1,0.001]
[1763490368381,6.19990372,3149.2,3149.1,0.001]
[1763490368589,7.37400362,3149.2,3149.1,0.001]
[1763490368789,3.351,3149.0,3147.6,0.1197]
[1763490369102,4.25799264,3148.5,3147.6,0.1197]
[1763490369315,1.46331304,3148.4,3147.4,0.1197]
[1763490369599,1.838231,3148.3,3146.6,0.65241191]
[1763490369798,0.98211304,3148.2,3146.4,0.2354]
[1763490370025,0.6198415,3148.1,3146.4,0.2354]
[1763490370179,1.1010415,3148.1,3146.4,0.2354]
[1763490370520,3.351,3147.9,3145.7,0.16559387]
[1763490370669,0.85611796,3147.1,3145.8,0.2354]
[1763490370870,0.29719914,3147.0,3145.8,0.2354]
[1763490371183,0.29719914,3147.1,3145.0,0.1197]
[1763490371370,1.46331304,3147.4,3145.7,0.2354]
[1763490371565,0.98211304,3147.3,3145.7,0.2354]
[1763490371765,0.77839914,3147.2,3145.7,0.2354]
[1763490371965,0.4812,3147.7,3145.7,0.2354]
[1763490372214,0.4812,3147.6,3145.8,0.405504]
[1763490372579,0.4812,3147.6,3145.9,0.2354]
[1763490373484,0.47391926,3147.5,3145.6,0.62682787]
[1763490373688,0.47391926,3147.5,3145.5,0.2354]
[1763490373689,0.76979184,3147.5,3145.7,0.405504]
[1763490373897,0.4812,3147.4,3145.5,0.2354]
[1763490374119,7.76571405,3147.9,3145.0,0.74575572]
[1763490374120,0.184,3147.9,3147.4,0.1157]
[1763490374319,0.6652,3147.9,3147.2,0.1157]
[1763490374825,0.6652,3147.9,3146.8,0.1157]
[1763490374826,0.479,3147.3,3146.8,0.1157]
[1763490375123,0.479,3147.3,3145.1,0.640904]
[1763490375327,0.479,3147.3,3145.3,0.405504]
[1763490375523,0.479,3147.3,3145.5,0.405504]
[1763490375724,0.479,3147.3,3145.5,0.81108567]
[1763490375924,0.4812,3147.2,3145.7,0.405504]
[1763490376287,0.4812,3147.2,3145.9,0.405504]
[1763490376690,0.4812,3147.2,3146.1,0.405504]
[1763490377011,0.4812,3147.5,3146.1,0.405504]
[1763490377217,0.29559525,3147.4,3146.2,0.2354]
[1763490377386,0.29559525,3147.4,3145.6,0.640904]
[1763490377719,0.29559525,3147.4,3145.8,0.405504]
[1763490377720,0.4812,3147.3,3145.8,0.405504]
[1763490377886,0.77679525,3147.3,3145.8,0.405504]
[1763490378092,0.77679525,3147.3,3145.5,0.40558167]
[1763490378093,0.29559525,3147.2,3145.5,0.40558167]
[1763490378316,0.77679525,3147.2,3145.5,0.40558167]
[1763490378515,0.29559525,3147.1,3145.6,0.2354]
[1763490378724,0.77679525,3147.0,3145.6,0.2354]
[1763490378910,0.29559525,3146.9,3145.6,0.2354]
[1763490379110,1.45640053,3147.5,3145.7,0.405504]
[1763490379311,0.29559525,3147.4,3145.7,0.405504]
[1763490379625,0.29559525,3147.3,3145.9,0.405504]
[1763490379932,0.4812,3147.4,3146.1,0.405504]
[1763490380236,0.29559525,3147.3,3146.3,0.405504]
[1763490380388,0.51304525,3147.4,3145.2,0.405504]
[1763490380588,0.29559525,3147.3,3145.2,0.77213484]
[1763490380814,0.29559525,3147.4,3145.4,0.405504]
[1763490381328,0.77309525,3147.8,3145.6,0.405504]
[1763490381527,0.29559525,3147.7,3145.6,0.405504]
[1763490381824,0.29559525,3147.6,3145.8,0.405504]
[1763490382216,0.29559525,3147.6,3146.0,0.405504]
[1763490382419,0.4775,3147.7,3146.0,0.405504]
[1763490382615,0.4775,3147.7,3146.2,0.405504]
[1763490383017,0.4775,3147.7,3146.4,0.405504]
[1763490383210,0.29559525,3147.8,3146.4,0.405504]
[1763490383407,0.184,3147.9,3146.6,0.405504]
[1763490383596,0.29559525,3147.9,3146.6,0.405504]
[1763490383802,0.1953,3147.9,3146.8,0.405504]
[1763490384135,0.4775,3148.1,3146.8,0.405504]
[1763490384338,0.4775,3148.1,3147.0,0.405504]
[1763490384520,0.77256587,3148.4,3147.0,0.405504]
[1763490384710,0.29506587,3148.3,3147.2,0.405504]
[1763490384908,0.4775,3148.4,3147.2,0.405504]
[1763490385126,0.4775,3148.4,3147.4,0.405504]
[1763490385513,0.29506587,3148.5,3147.5,0.2354]
[1763490385713,0.184,3148.6,3147.6,0.405504]
[1763490385943,0.29506587,3148.7,3147.6,0.405504]
[1763490386248,0.77256587,3148.8,3147.7,0.2354]
[1763490386621,0.4775,3148.7,3147.7,0.2354]
[1763490386825,0.4775,3148.7,3147.2,0.405504]
[1763490387045,0.4775,3148.7,3147.4,0.2354]
[1763490387848,0.77256587,3148.7,3147.4,0.2354]
[1763490388216,0.4775,3148.6,3147.4,0.2354]
[1763490388609,0.77256587,3148.6,3147.4,0.2354]
[1763490388954,0.4668,3147.5,3147.1,0.1157]
[1763490389159,0.32736233,3148.5,3147.1,0.1157]
[1763490389160,0.29551708,3148.4,3147.1,0.1157]
[1763490389309,0.77301708,3148.4,3147.4,0.2354]
[1763490389511,0.29551708,3148.3,3147.4,0.2354]
[1763490389744,0.77301708,3148.3,3147.4,0.2354]
[1763490390043,0.29551708,3148.2,3147.4,0.2354]
[1763490390245,0.03184525,3148.2,3147.4,0.2354]
[1763490390443,0.50934525,3148.2,3147.4,0.2354]
[1763490390638,0.29575838,3148.1,3147.4,0.2354]
[1763490390840,0.32760363,3148.1,3147.4,0.2354]
[1763490391147,0.80510363,3148.1,3147.1,0.1157]
[1763490391382,0.50934525,3148.1,3147.1,0.1157]
[1763490391646,0.4775,3148.0,3147.1,0.1157]
[1763490391847,0.77341735,3148.0,3147.1,0.1157]
[1763490392020,0.4775,3148.0,3147.1,0.1157]
[1763490392427,0.1953,3147.9,3147.1,0.1157]
[1763490392626,0.1953,3147.9,3147.1,0.3511]
[1763490393222,0.90699264,3148.6,3147.1,0.1157]
[1763490393425,1.19949083,3148.5,3147.2,0.2354]
[1763490393654,0.29619157,3148.4,3147.2,0.2354]
[1763490393950,0.29619157,3148.3,3147.2,0.2354]
[1763490394248,0.29619157,3148.2,3147.1,0.1157]
[1763490394449,0.29619157,3148.1,3147.1,0.1157]
[1763490394749,0.29619157,3148.2,3147.2,0.640904]
[1763490394951,0.29619157,3148.4,3147.2,0.640904]
[1763490395167,0.29619157,3148.3,3147.4,0.405504]
[1763490395365,0.29619157,3148.2,3147.4,0.405504]
[1763490395565,0.29619157,3148.1,3147.4,0.405504]
[1763490395872,0.29619157,3148.3,3147.5,0.2354]
[1763490396072,0.29619157,3148.2,3147.5,0.2354]
[1763490396368,0.29619157,3148.1,3147.1,0.3511]
[1763490396545,0.29619157,3148.0,3147.2,0.405504]
[1763490396746,0.29619157,3148.5,3147.2,0.640904]
[1763490396952,0.29619157,3148.4,3147.4,0.405504]
[1763490397170,0.68337511,3148.8,3147.4,0.405504]
[1763490397171,0.29619157,3148.3,3147.4,0.405504]
[1763490397371,0.29619157,3148.2,3147.4,0.2354]
[1763490397666,0.29619157,3148.1,3147.4,0.2354]
[1763490397874,0.29619157,3148.0,3147.4,0.2354]
[1763490398068,0.472,3148.5,3147.4,0.2354]
[1763490398272,0.29704133,3148.4,3147.4,0.2354]
[1763490398472,0.29704133,3148.3,3147.4,0.2354]
[1763490398659,0.29704133,3148.2,3147.5,0.03177124]
[1763490398861,0.29707164,3148.7,3147.6,0.2354]
[1763490399172,0.29707164,3148.6,3147.6,0.2354]
[1763490399335,0.29707164,3148.5,3147.6,0.2354]
[1763490399668,0.29701413,3148.4,3147.6,0.2354]
[1763490399967,0.50384525,3148.7,3147.6,0.2354]
[1763490400169,0.29701784,3148.6,3147.6,0.2354]
[1763490400361,0.50384525,3148.7,3147.2,0.405504]
[1763490400362,0.29701784,3148.5,3147.2,0.405504]
[1763490400557,0.184,3148.9,3147.2,0.405504]
[1763490400558,0.80086309,3148.4,3147.2,0.405504]
[1763490400867,0.29701784,3148.3,3147.2,0.405504]
[1763490401069,0.29701784,3148.2,3147.2,0.405504]
[1763490401280,0.32886309,3148.1,3147.1,0.1157]
[1763490401579,0.29701784,3148.0,3147.1,0.1157]
[1763490401884,0.32886309,3147.9,3147.0,0.405504]
[1763490402049,0.29701784,3147.8,3147.0,0.405504]
[1763490402240,0.29701784,3147.7,3146.9,0.1157]
[1763490402442,0.29701784,3147.6,3146.6,0.1157]
[1763490402650,0.29701784,3147.5,3146.6,0.1157]
[1763490402980,0.76901784,3147.4,3146.6,0.1157]
[1763490403180,0.472,3147.4,3146.6,0.1157]
[1763490403386,0.29721445,3147.8,3147.3,0.2354]
[1763490403548,0.1841,3147.9,3146.6,0.1157]
[1763490403549,0.4638,3147.4,3146.6,0.1157]
[1763490404072,0.4638,3147.4,3146.6,0.521204]
[1763490404699,0.9358,3147.4,3146.6,0.521204]
[1763490405274,0.29723159,3147.3,3146.6,0.521204]
[1763490405473,0.76923159,3147.3,3146.6,0.1157]
[1763490405655,0.472,3147.2,3146.6,0.1157]
[1763490405862,0.76925607,3147.2,3146.6,0.1157]
[1763490406057,0.29726091,3147.1,3146.6,0.1157]
[1763490406257,0.29726091,3147.1,3146.4,0.1157]
[1763490406459,0.472,3147.1,3146.4,0.1157]
[1763490406979,0.29726091,3147.3,3146.4,0.3511]
[1763490407280,0.472,3147.5,3146.5,0.405504]
[1763490407281,0.29726091,3147.2,3146.5,0.405504]
[1763490407495,0.29726091,3147.4,3146.5,0.640904]
[1763490407784,0.29726091,3147.3,3146.6,0.2354]
[1763490407945,0.50384525,3147.8,3146.7,0.405504]
[1763490408149,0.29727942,3147.7,3146.7,0.405504]
[1763490408381,0.29727942,3147.6,3146.8,0.2354]
[1763490408681,0.1841,3147.9,3146.7,0.405504]
[1763490408682,0.29727942,3147.5,3146.7,0.405504]
[1763490408978,0.29727942,3147.4,3146.5,0.217604]
[1763490409184,0.29727942,3147.7,3146.5,0.217604]
[1763490409347,0.29727942,3147.6,3146.5,0.217604]
[1763490409685,0.29727942,3147.5,3146.5,0.217604]
[1763490409978,0.29727942,3147.4,3146.5,0.217604]
[1763490410187,0.29727942,3147.3,3146.5,0.217604]
[1763490410394,0.29751601,3147.5,3146.5,0.217604]
[1763490410559,0.29751601,3147.4,3146.5,0.217604]
[1763490410759,0.29751601,3147.3,3146.6,0.405504]
[1763490410967,0.29751601,3147.5,3146.6,0.405504]
[1763490411168,0.29751601,3147.4,3146.5,0.217604]
[1763490411361,1.37899264,3148.3,3146.5,0.217604]
[1763490411562,1.45478992,3148.2,3146.5,0.217604]
[1763490411784,0.32933725,3148.1,3146.5,0.217604]
[1763490411992,0.297492,3148.0,3146.5,0.217604]
[1763490412199,0.297492,3147.9,3146.5,0.217604]
[1763490412393,0.297492,3147.8,3146.5,0.217604]
[1763490412699,0.769492,3147.7,3146.5,0.217604]
[1763490412992,0.297492,3147.6,3145.8,0.90699264]
[1763490413198,0.472,3147.7,3145.9,1.1458988]
[1763490413497,0.29764052,3147.6,3145.9,1.1458988]
[1763490413712,0.472,3147.7,3145.9,0.9772588]
[1763490413926,0.2976392,3147.6,3145.9,0.9772588]
[1763490414199,0.472,3147.7,3145.9,0.9772588]
[1763490414392,0.29763529,3147.6,3146.0,0.18842514]
[1763490414594,0.472,3147.7,3146.0,0.18842514]
[1763490414769,0.29763525,3147.6,3146.0,0.18842514]
[1763490414964,0.472,3147.7,3146.0,0.18842514]
[1763490415185,0.472,3148.2,3146.0,0.18842514]
[1763490415395,0.29763396,3148.1,3146.1,0.18088806]
[1763490415670,0.29763396,3148.0,3146.2,0.405504]
[1763490415868,0.29763396,3147.9,3146.2,0.26473044]
[1763490416068,0.29763396,3147.8,3146.2,0.26473044]
[1763490416268,0.1841,3147.9,3146.2,0.26473044]
[1763490416466,0.29763518,3147.8,3146.4,0.90699264]
[1763490416718,0.29763547,3147.8,3146.5,0.47669926]
[1763490417214,0.1841,3147.9,3146.5,0.47669926]
[1763490417512,0.29767246,3147.8,3146.5,0.47669926]
[1763490417917,0.29767246,3147.8,3146.6,0.405504]
[1763490418439,0.002,3147.6,3146.6,0.405504]
[1763490418986,0.002,3147.6,3146.6,0.355504]
[1763490419594,0.472,3147.5,3146.6,0.91542359]
[1763490420827,0.472,3147.5,3146.1,1.0878807]
[1763490421027,0.472,3147.5,3146.2,0.405504]
[1763490421526,0.002,3147.6,3146.2,0.405504]
[1763490421731,0.002,3147.6,3146.4,1.31249664]
[1763490421908,0.002,3147.6,3147.5,0.405504]
[1763490422108,0.002,3147.6,3147.4,6.49695532]
[1763490422109,0.002,3147.6,3146.5,0.36663084]
[1763490422321,0.002,3147.6,3146.6,0.405504]
[1763490422498,0.002,3147.6,3146.8,1.31249664]
[1763490423490,0.29744125,3148.7,3147.2,6.49695532]
[1763490423693,0.184,3148.9,3147.2,6.49695532]
[1763490423694,0.1841,3148.9,3147.3,1.96219217]
[1763490424830,0.1953,3149.1,3147.3,1.96219217]
[1763490425045,0.1953,3149.1,3147.8,1.31249664]
[1763490425249,0.472,3149.0,3147.8,1.31249664]
[1763490425469,0.76919811,3149.0,3147.4,0.405504]
[1763490425760,0.1841,3148.9,3147.4,0.405504]
[1763490425926,0.472,3148.8,3146.9,0.405504]
[1763490427750,0.1953,3149.1,3147.3,1.31249664]
[1763490427952,0.1953,3149.1,3147.5,0.405504]
[1763490428120,0.6712,3149.1,3147.5,0.405504]
[1763490428773,0.1927,3149.2,3147.8,6.49695532]
[1763490428935,0.1927,3149.2,3147.9,0.405504]
[1763490429132,0.1927,3149.2,3148.1,0.405504]
[1763490430520,0.6588,3149.9,3148.3,6.90245932]
[1763490430764,0.4759,3149.8,3148.3,6.90245932]
[1763490431468,0.4759,3149.8,3148.1,0.405504]
[1763490432626,0.4759,3149.8,3148.1,1.04366964]
[1763490432934,0.4759,3149.8,3148.1,0.57889556]
[1763490433151,0.4759,3149.8,3147.5,0.405504]
[1763490433662,0.4759,3149.8,3147.9,1.31249664]
[1763490434566,0.4759,3149.8,3148.4,0.405504]
[1763490434775,0.4759,3149.8,3148.6,0.405504]
[1763490435123,0.1829,3149.9,3148.8,0.405504]
[1763490435358,0.1829,3149.9,3148.9,0.4265504]
[1763490435729,0.1829,3149.9,3149.0,0.405504]
[1763490435946,0.002,3150.0,3148.7,0.405504]
[1763490436954,0.002,3150.0,3148.9,0.405504]
[1763490437156,0.002,3149.8,3148.9,1.31249664]
[1763490437326,0.002,3149.8,3149.1,0.405504]
[1763490438335,0.002,3150.0,3149.4,1.31249664]
[1763490439279,0.002,3150.4,3149.9,1.31249664]
[1763490442380,0.002,3151.3,3149.9,1.31249664]
[1763490444071,0.002,3151.3,3150.4,1.31249664]
[1763490444273,0.002,3151.3,3150.6,0.405504]
[1763490444780,0.002,3151.4,3150.9,1.31249664]
[1763490446973,0.002,3151.4,3150.8,1.31249664]
[1763490448579,0.002,3151.4,3150.6,0.405504]
[1763490448966,0.002,3151.4,3150.3,0.405504]
[1763490449171,0.002,3151.4,3150.3,1.05250776]
[1763490449344,0.002,3151.4,3150.5,0.405504]
[1763490449663,0.002,3151.4,3150.8,1.31249664]